Cogmind - Beta 14 @@@ ROGUE MODE // 2025.03.09 @ 22:13:34 Player: k1ll3rb0t Result: Destroyed self with YOLO Cannon Performance ------------- Evolutions (0) 0 Regions Visited (4) 800 Robots Destroyed (29) 145 Value Destroyed (566) 566 Prototype IDs (23) 460 Alien Tech Used (0) 0 Bonus (300) 300 TOTAL SCORE: 2271 Bonus ------- Aligned with FarCom 300 Cogmind --------- Core Integrity 0/250 Matter 295/300 Energy 165/250 System Corruption 0% Temperature Cool (20) Movement Walking (260) Ox2 Location -9/Mines Parts ------- > --- POWER (1) -------- Ion Engine > --- PROPULSION (2) --- Aluminum Leg > --- UTILITY (2) ------ Heat Sink Small Storage Unit > --- WEAPON (2) ------- YOLO Cannon > --- INVENTORY (8) ---- Flight Unit Flight Unit Flight Unit Flight Unit High-capacity Battery (250) Improved Terrain Scanner Peak State ------------ > --- POWER ------------ Light Ion Engine > --- PROPULSION ------- Light Treads Light Treads > --- UTILITY ---------- Small Storage Unit Seismic Detector > --- WEAPON ----------- YOLO Cannon > --- INVENTORY -------- Flight Unit Flight Unit Flight Unit Flight Unit High-capacity Battery Improved Terrain Scanner [Rating: 25] Favorites ----------- Power Light Ion Engine Engine Light Ion Engine Propulsion Light Treads Treads Light Treads Leg Aluminum Leg Utility Small Storage Unit Device Seismic Detector Storage Small Storage Unit Weapon Light Assault Rifle Energy Gun Medium Laser Energy Cannon YOLO Cannon Ballistic Gun Light Assault Rifle Build | -11 -10 -10 -10 -9 ------- Run | Yrd Mat Min Exi Min Slots Evolved . | . . . . . Power . | . . . . . Propulsion . | . . . . . Utility . | . . . . . Weapon . | . . . . . Parts Attached 27 | 8 . 2 3 14 Power 4 | 1 . 1 . 2 Engine 4 | 1 . 1 . 2 Core . | . . . . . Reactor . | . . . . . Propulsion 4 | 2 . . . 2 Treads 2 | 2 . . . . Leg 2 | . . . . 2 Wheel . | . . . . . Hover . | . . . . . Flight . | . . . . . Utility 6 | 2 . . . 4 Device 5 | 1 . . . 4 Storage 1 | 1 . . . . Processor . | . . . . . Hackware . | . . . . . Protection . | . . . . . Artifact . | . . . . . Weapon 13 | 3 . 1 3 6 Energy Gun 5 | 3 . . 1 1 Energy Cannon 3 | . . . 1 2 Ballistic Gun 5 | . . 1 1 3 Ballistic Cannon . | . . . . . Launcher . | . . . . . Special Weapon . | . . . . . Impact Weapon . | . . . . . Slashing Weapon . | . . . . . Piercing Weapon . | . . . . . Special Melee Weapon . | . . . . . Unidentified Prototypes . | . . . . . Parts Lost 6 | . . . . 6 Power . | . . . . . Propulsion 3 | . . . . 3 Utility 1 | . . . . 1 Weapon 2 | . . . . 2 Highest Loss Streak 4 | . . . . 4 To Critical Strikes . | . . . . . Average Slot Usage (%) 98 | . 100 100 99 96 Engine 14 | . 14 14 14 14 Treads 26 | . 28 28 28 23 Leg 1 | . . . . 4 Device 13 | . 14 14 14 12 Storage 14 | . 14 14 14 14 Energy Gun 11 | . 28 17 13 1 Ballistic Gun 15 | . . 11 14 24 Peak Build Rating 25 | 8 8 8 25 25 Average Rating 8 | 5 7 7 8 9 On Entrance 6 | . 8 8 8 9 Naked Turns . | . . . . . Heaviest Build 29 | 12 12 12 12 29 Greatest Support 40 | 40 40 40 40 40 Greatest Overweight (x) 3 | 1 . . . 3 Average Overweight (x) . | . . . . . Largest Inventory Capacity 8 | 8 8 8 8 8 Average Capacity 7 | 7 8 8 8 8 Most Carried 8 | 8 8 8 8 8 Average Carried 7 | 5 7 7 7 7 Final Capacity 8 | 8 8 8 8 8 Final Carried 8 | 8 8 8 8 6 Class Distribution -------------------- 72% | Mutant 19% | Scavenger-Mutant 7% | Scavenger-Skirmisher Dominant Class ---------------- Mutant | -10/Materials Mutant | -10/Mines Mutant | -10/Exiles Scavenger-Mutant | -9/Mines Resources | -11 -10 -10 -10 -9 ----------- Run | Yrd Mat Min Exi Min Matter Collected 502 | 280 . 27 30 165 Remotely . | . . . . . Salvage Created 794 | 172 44 139 . 439 Parts 58 | 19 4 12 . 23 Haulers Intercepted . | . . . . . Recyclers Shooed . | . . . . . Parts Field Recycled . | . . . . . Retrieved Matter . | . . . . . Parts Self-Destructed . | . . . . . Prevented . | . . . . . Kills | -11 -10 -10 -10 -9 ------- Run | Yrd Mat Min Exi Min Combat Hostiles Destroyed 21 | . 3 5 . 13 Guns 17 | . 3 5 . 9 Cannons 2 | . . . . 2 AOE 1 | . . . . 1 Classes Destroyed 4 | 2 1 1 . . Tunneler 7 | 5 . . . 2 Recycler 1 | 1 . . . . Swarmer 9 | . 3 3 . 3 Grunt 12 | . . 2 . 10 Best Kill Streak 5 | 2 3 3 . 5 Combat Bots Only 4 | . 3 3 . 4 Max Kills in Single Turn 2 | 1 1 1 . 2 Gunslinging . | . . . . . Exploded 1 | . . . . 1 Melee . | . . . . . Uniques/NPCs Destroyed . | . . . . . Combat | -11 -10 -10 -10 -9 -------- Run | Yrd Mat Min Exi Min Hostile Shots Fired 116 | . 14 21 . 81 Missed 27 | . 4 4 . 19 Damage Taken 1024 | . 89 192 . 743 Core 254 | . 28 35 . 191 Absorbed by Shields . | . . . . . Core Remaining (%) 100 | 100 . . . . Volleys Fired 65 | 8 7 10 . 40 Largest 2 | 2 2 2 . 2 Hottest 100 | 90 90 90 . 100 Shots Fired 117 | 16 12 20 . 69 Gun 112 | 16 12 20 . 64 Cannon 5 | . . . . 5 Launcher . | . . . . . Special . | . . . . . Kinetic 62 | . . 7 . 55 Thermal 55 | 16 12 13 . 14 Explosive . | . . . . . Electromagnetic . | . . . . . Robot Hit Streak 14 | 12 14 9 . 7 Robot Miss Streak 3 | . 1 1 . 3 Penetration Max . | . . . . . Secondary Targets 4 | . . 2 . 2 Max Gunslinging Chain 1 | . . 1 . 1 Shots Hit Robots 82 | 12 8 14 . 48 Core Hits 44 | 7 3 8 . 26 Critical Kills 2 | . . . . 2 Critical Parts Destroyed 1 | . . . . 1 Critical Strikes 5 | 2 . . . 3 Burn 2 | 2 . . . . Meltdown 1 | . . . . 1 Destroy 2 | . . . . 2 Melee Attacks . | . . . . . Impact . | . . . . . Slashing . | . . . . . Piercing . | . . . . . Sneak Attacks . | . . . . . Combat Hostiles . | . . . . . Follow-up Attacks . | . . . . . Damage Inflicted 1517 | 144 94 160 . 1119 Guns 823 | 144 94 160 . 425 Cannons 462 | . . . . 462 Explosions 232 | . . . . 232 Melee . | . . . . . Ramming . | . . . . . Kinetic 368 | . . 28 . 340 Thermal 1149 | 144 94 132 . 779 Explosive . | . . . . . Electromagnetic . | . . . . . Impact . | . . . . . Slashing . | . . . . . Piercing . | . . . . . Highest Corruption . | . . . . . Average Corruption . | . . . . . Corruption Purged . | . . . . . Corruption Blocked . | . . . . . Overload Shots . | . . . . . Overflow Damage 79 | . . . . 79 Projectiles 9 | . . . . 9 Explosions 70 | . . . . 70 Melee . | . . . . . Knockbacks . | . . . . . Impact . | . . . . . Kinetic . | . . . . . Secondary . | . . . . . Self-Inflicted Damage 111 | . . . . 111 Shots 2 | . . . . 2 Rammed . | . . . . . Targets Rammed . | . . . . . Kicked . | . . . . . Crushed . | . . . . . Highest Temperature 182 | 30 150 182 . 70 Average Temperature 41 | 18 66 85 . 20 Received Heat Transfer 345 | . . 81 . 264 Siege Activations . | . . . . . Robots Corrupted . | . . . . . Combat Hostiles . | . . . . . Parts Fried . | . . . . . Impact Corruptions . | . . . . . Robots Melted 1 | . . . . 1 Combat Hostiles 1 | . . . . 1 Parts Melted 3 | 2 . . . 1 Heat Transferred 2038 | 544 248 383 . 863 Parts Sabotaged . | . . . . . Parts Stolen . | . . . . . Parts Stripped . | . . . . . Power Chain Reactions . | . . . . . Alert | -11 -10 -10 -10 -9 ------- Run | Yrd Mat Min Exi Min Peak Influence 206 | 30 89 154 . 206 Initial 34 | . 19 34 . . Average 55 | 12 69 129 . 54 Maximum Alert Level 1 | . . . . 1 Low Security (%) 99 | 100 100 100 . 98 Level 1 . | . . . . 1 Level 2 . | . . . . . Level 3 . | . . . . . Level 4 . | . . . . . Level 5 . | . . . . . High Security . | . . . . . Max Security . | . . . . . Squads Dispatched 2 | . 2 . . . Investigation 1 | . 1 . . . Extermination . | . . . . . Reinforcement 1 | . 1 . . . Assault . | . . . . . Garrison . | . . . . . Intercept . | . . . . . Searches Triggered . | . . . . . Construction Impeded . | . . . . . Haulers Reinforced . | . . . . . Active Scanning Responses . | . . . . . Cargo Convoy Interrupts . | . . . . . Stealth | -11 -10 -10 -10 -9 --------- Run | Yrd Mat Min Exi Min Distress Signals 1 | . 1 . . . Communications Jammed . | . . . . . Distress Signals . | . . . . . Times Spotted 22 | . 4 4 . 14 Peak Tracking Total 3 | . 3 2 . 3 Tactical Retreats . | . . . . . Traps | -11 -10 -10 -10 -9 ------- Run | Yrd Mat Min Exi Min Traps Triggered 1 | . 1 . . . Indirectly . | . . . . . Trap Hack Attempts . | . . . . . Triggered . | . . . . . Disarmed . | . . . . . Reprogrammed . | . . . . . Reused . | . . . . . Traps Extracted . | . . . . . Installed . | . . . . . Triggered . | . . . . . Machines | -11 -10 -10 -10 -9 ---------- Run | Yrd Mat Min Exi Min Machines Disabled . | . . . . . Max in Single Turn . | . . . . . Machines Repaired . | . . . . . Machines Dismantled . | . . . . . Machines Sabotaged . | . . . . . Overloaded Fab Kills . | . . . . . Hacking | -11 -10 -10 -10 -9 --------- Run | Yrd Mat Min Exi Min Machines Accessed 8 | . 3 . 5 . Terminals 2 | . 2 . . . Fabricators . | . . . . . Repair Stations . | . . . . . Recycling Units 1 | . 1 . . . Scanalyzers . | . . . . . Garrison Access . | . . . . . Total Hacks 49 | . 8 . 41 . Successful 43 | . 2 . 41 . Failed 6 | . 6 . . . Catastrophic . | . . . . . Database Lockouts . | . . . . . Manual 3 | . 2 . 1 . Terminals 5 | . 5 . . . Fabricators . | . . . . . Repair Stations . | . . . . . Recycling Units 3 | . 3 . . . Scanalyzers . | . . . . . Garrison Access . | . . . . . Terminal Hacks 43 | . 2 . 41 . Record 40 | . . . 40 . Emergency Access Points 1 | . 1 . . . Recall Investigation 1 | . 1 . . . Derelict Proto ID Bank 1 | . . . 1 . Fabricator Hacks . | . . . . . Repair Station Hacks . | . . . . . Recycling Unit Hacks . | . . . . . Scanalyzer . | . . . . . Garrison Access Hacks . | . . . . . Unauthorized Hacks . | . . . . . Terminals . | . . . . . Fabricators . | . . . . . Repair Stations . | . . . . . Recycling Units . | . . . . . Scanalyzers . | . . . . . Garrison Access . | . . . . . Data Cores Recovered . | . . . . . Used . | . . . . . Hacking Detections 3 | . 3 . . . Full Trace Events . | . . . . . Feedback Events . | . . . . . Feedback Blocked . | . . . . . Robot Schematics Acquired . | . . . . . Robots Built . | . . . . . Authchips . | . . . . . Time . | . . . . . Total Robot Build Rating . | . . . . . Part Schematics Acquired . | . . . . . Parts Built . | . . . . . Authchips . | . . . . . Time . | . . . . . Total Part Build Rating . | . . . . . Parts Repaired . | . . . . . Time . | . . . . . Parts Recycled . | . . . . . Recycled Matter . | . . . . . Retrieved Matter . | . . . . . Retrieved Components . | . . . . . Parts Scanalyzed . | . . . . . Part Schematics Acquired . | . . . . . Parts Damaged . | . . . . . Bothacking | -11 -10 -10 -10 -9 ------------ Run | Yrd Mat Min Exi Min Used RIF Installer . | . . . . . Robots Hacked . | . . . . . Non-combat . | . . . . . Combat . | . . . . . Robot Hacks Applied . | . . . . . Relay Couplers Released . | . . . . . Fabnet Peak Effective % . | . . . . . Robots Rewired . | . . . . . Allies Hacked . | . . . . . Hacks Repelled . | . . . . . Allies | -11 -10 -10 -10 -9 -------- Run | Yrd Mat Min Exi Min Total Allies . | . . . . . Largest Group . | . . . . . Highest-Rated Group . | . . . . . Highest-Rated Ally . | . . . . . Total Orders . | . . . . . Ally Attacks . | . . . . . Total Damage . | . . . . . Kills . | . . . . . Allies Corrupted . | . . . . . Allies Melted . | . . . . . Intel | -11 -10 -10 -10 -9 ------- Run | Yrd Mat Min Exi Min Robot Analysis Total . | . . . . . Derelict Logs Recovered . | . . . . . Drone Launches . | . . . . . Drone Recoveries . | . . . . . Exploration | -11 -10 -10 -10 -9 ------------- Run | Yrd Mat Min Exi Min Turns Passed 2610 | 345 332 135 1038 760 Spaces Moved 1242 | 192 183 61 643 163 Core 12 | 8 . . . 4 Treads 1186 | 184 183 61 643 115 Legs 44 | . . . . 44 Wheels . | . . . . . Hover . | . . . . . Flight . | . . . . . Fastest Speed 50 | 50 160 160 160 120 Average Speed 158 | 156 160 160 160 152 Slowest Speed 200 | 160 160 160 160 200 Overloaded Moves . | . . . . . Propulsion Burnouts . | . . . . . Robots Hopped . | . . . . . Cave-ins Triggered . | . . . . . Exploration Rate (%) 34 | 9 28 9 89 36 Regions Visited 4 Branch Regions 3 Pre-discovered Areas 1 | . . . 1 . Known Exits Taken . | . . . . . Unknown Exits Taken 4 | 1 1 1 1 . Scrap Searched . | . . . . . Spaces Dug . | . . . . . Terrain Destroyed 54 | . . . . 54 Melee . | . . . . . Projectile 1 | . . . . 1 AOE 53 | . . . . 53 Terrain Rammed . | . . . . . Walls Destroyed . | . . . . . Machines Disabled . | . . . . . Actions | -11 -10 -10 -10 -9 --------- Run | Yrd Mat Min Exi Min Total 1775 | 217 213 81 655 609 Wait 397 | . 12 . . 385 Move 1238 | 191 182 60 642 163 Hop . | . . . . . Pick Up 23 | 10 6 4 3 . Fast Attach 15 | 5 . 1 2 7 Attach 5 | 2 . . 1 2 Detach 2 | . . . 1 1 Swap 7 | 1 . 1 . 5 Drop 23 | . 6 5 6 6 Fire 65 | 8 7 10 . 40 Melee . | . . . . . Ram . | . . . . . Kick . | . . . . . Crush . | . . . . . Escape Stasis . | . . . . . Rewire . | . . . . . Trap . | . . . . . Miscellaneous . | . . . . . Route ------- -11/Scrapyard -10/Materials -10/Mines -10/Exiles -9/Mines History --------- Turn | Location | Event 5 | -11/Scrapyard | Discovered new exit (range 15) 346 | -11/Scrapyard | Entered Materials 347 | -10/Materials | Build established: Mutant 657 | -10/Materials | Discovered new exit (range 12) 678 | -10/Materials | Entered Mines 679 | -10/Mines | Assembled infested the area 806 | -10/Mines | Deemed a non-threat by the Exiles lab entrance 806 | -10/Mines | Discovered new exit (range 5) 813 | -10/Mines | Entered Exiles 853 | -10/Exiles | Met 8R-AWN 881 | -10/Exiles | Met EX-HEX 929 | -10/Exiles | Met EX-BIN 948 | -10/Exiles | Aligned with FarCom system 949 | -10/Exiles | Given EX-Vault access code 987 | -10/Exiles | Opened EX-Vault 995 | -10/Exiles | Found YOLO Cannon 1052 | -10/Exiles | Warned to stay clear of 0b10 Research branches 1102 | -10/Exiles | Met EX-DEC 1113 | -10/Exiles | Learned location of Zion (-7) 1176 | -10/Exiles | Visited The Gauntlet 1492 | -10/Exiles | Discovered new exit (range 14) 1851 | -10/Exiles | Left Exiles lab with YOLO Cannon 1851 | -10/Exiles | Entered Mines 2047 | -9/Mines | Excavation squad dispatched 2047 | -9/Mines | A large section of the Mines collapsed 2297 | -9/Mines | Excavation squad dispatched 2424 | -9/Mines | Build established: Scavenger-Mutant 2488 | -9/Mines | Core integrity fell below 50% 2547 | -9/Mines | Excavation squad dispatched 2560 | -9/Mines | Lost 4 parts (2n1u1w) 2611 | -9/Mines | Destroyed self with YOLO Cannon Last Messages --------------- 02553_ U-05 Engineer builds a Wall. 02556_ U-05 Engineer lays Concrete. 02559_ U-05 Engineer builds a Wall. 02564_ U-05 Engineer lays Concrete. 02564_ Acquired Heat Sink. 02565_ U-05 Engineer builds a Wall. 02568_ U-05 Engineer lays Concrete. 02569_ U-05 Engineer builds a Wall. 02569_ U-05 Engineer lays Concrete. 02572_ U-05 Engineer builds a Wall. 02573_ Acquired 20 matter. 02578_ U-05 Engineer lays Concrete. 02590_ Dropped Sml. Laser. 02590_ Dropped Lgt. Assault Rifle. 02595_ G-34 Mercenary destroyed. 02597_ K-01 Serf collects debris. 02599_ G-34 Mercenary destroyed. 02601_ K-01 Serf collects debris. 02611_ Aluminum Leg destroyed. 02611_ Destroyed Aluminum Leg. Map ----- +----------------------------------------------------+ | ?????????????????????????????????????????????????? | | ?????????????????????????????????????????????????? | | ?????????????????????????????????????????????????? | | ?????????????????????????????????????????????????? | | ?????????????????????????????????????????????????? | | ?????????????????????????????????????????????????? | | ?????????????????????????????????????????????????? | | ?????????????????????????????????????????????????? | | ?????????????????????????????????????????????????? | | ?????????????????????????????????????????????????? | | #???????????????#???????????????????#????????????? | | ?????????????????????????????????? ?????????? | | ??????????????????????#??????????# ??????????? | | ????????????????????????????????? #??????????? | | #?????????????????#???#???#????? #??????????? | | ##?????#?????#?####??#?????????? #??????????? | | #???????#????? ##?#?????#??? #???????????? | | #??####??????? #?##???##### /!#???????????? | | #### ##?????? #??#???## ; #???????????? | | ## #??#??? ????### g #???????????? | | ##????## ???#?## ##??????????? | | ##???### ???####; t=k k ##?????????? | | ##???# ##?????## t ; #?????????? | | #???# #???#?#; ;# #?????????? | | #???# ##????# ; ##??????????????? | | ##???# #??####@ #######???????????????? | | ## ###???# #?? #u #??#??????????????????? | | # ### ##???### ### ##% #?#???????????????????? | | # ######???#??# ## ##r= #?????????????????????? | | # ##???###?#?# # ## t ##????????????????????? | | # ##?????????# #"#t ##???#?????????????????? | | ##?#???#??# #" * ##??????????????????????? | | ##?#?????# %# ####??????????????????????? | | ##?#????# %t*k;" ##???#??????????????????? | | =######## = ; ####?#???????????????????? | | ### ####%%####????????????????????????? | | ?### ## % #???????????????????????????? | | ##?# t ##?#??????????#?????????????? | | ???## ## ##??##???????????????????????? | | ????## ## ######??# ????????????????????????? | | ###### ## ##??#?????? ???? ??????????????????? | | # ## #????#???? ????????????????????????? | | # ### ##????????????? ????????????????????? | | # ######?####?????#?????????????????????????????? | | #????????#????????????? ??????????????????????? | | ####???????????????????#?????????????????????????? | | ??????????#??????#???????????????????????????????? | | ????????#?#???#??????????????????????????????????? | | ????????????????#????????????????????????????????? | | ?????????????????????????????????????????????????? | +----------------------------------------------------+ Best States ------------- Heat Dissipation 35 Energy Generation 10 Energy Capacity 250 Matter Stores 300 Matter Capacity 300 Sight Range 16 Terrain Scan Range 16 Terrain Scan Density 10 Evasion (%) 55 Recoil Reduction 2 Item Schematics ----------------- None Robot Schematics ------------------ None Fabricated ------------ Nothing Alien Tech Used ----------------- None Achievements -------------- None Challenges ------------ None Game ------ Seed GaussThermalThermoblaster Manual? 0 Play Time 00:28:24 Cumulative 59.3 hours Start 2025.03.09 @ 21:42:06 End 2025.03.09 @ 22:13:34 Sessions 1 Manual Loads 0 Difficulty Rogue Special Mode None Game No. 23 Rogue 23 Adventurer 0 Explorer 0 Win Type - Total 0 Types 0/0/0/0/0/0/0/0/0 Lore% 14 Gallery% 41 Achievement% 33 Wizard Run 0 Options --------- Layout 1 ASCII 0 Keyboard 0 Movement Mouse Keybinds 0 Fullscreen 1 Font 32/SmallcapsGlow Map View 50x35 Zoom Use 0% Tactical HUD 1 Map Filters NONE Filters NONE Steam 1 RUN: 6da65ab9-e87b-4b75-ab91-5f0bab2ebb85